bitfinex/quotes_ETHUSD_20240821
["timestamp","ask_amount","ask_price","bid_price","bid_amount"]
[1724249915222,3.86625,2586.5,2585.6,0.005]
[1724249915423,3.0816,2586.4,2585.6,0.005]
[1724249915608,0.694785,2586.3,2585.6,0.005]
[1724249915949,0.694785,2586.3,2585.8,7.73437]
[1724249916097,3.0816,2586.4,2585.6,0.005]
[1724249916291,3.0816,2586.4,2585.8,3.86722]
[1724249916497,3.0816,2586.4,2585.6,0.005]
[1724249916498,3.0816,2586.4,2585.6,3.87246]
[1724249916701,3.0816,2586.4,2585.6,0.005]
[1724249916994,3.0816,2586.4,2585.7,3.86728]
[1724249917196,3.0816,2586.4,2586.1,3.86682]
[1724249917397,3.86378,2588.2,2585.7,0.07734293]
[1724249917398,3.322,2587.0,2586.0,3.86686]
[1724249917597,3.86404,2588.0,2586.9,3.86553]
[1724249917598,3.322,2587.9,2586.9,3.86553]
[1724249917799,3.322,2587.9,2586.5,0.07730848]
[1724249918006,3.322,2587.9,2587.1,3.86529]
[1724249918223,3.322,2587.9,2587.8,3.86428]
[1724249918455,3.2773,2589.2,2587.4,3.86482]
[1724249918634,3.2773,2589.2,2588.3,3.86351]
[1724249918832,3.86259,2589.0,2587.8,3.86417]
[1724249919045,0.386259,2588.9,2587.7,4.25176]
[1724249919389,3.0777,2588.8,2587.3,3.86498]
[1724249919522,3.86333,2588.5,2587.4,3.86487]
[1724249919721,3.2914,2588.6,2587.5,3.86467]
[1724249919922,3.2914,2588.6,2587.0,0.55]
[1724249920121,3.2914,2588.6,2588.0,3.86396]
[1724249920368,3.2914,2588.6,2587.9,3.8641]
[1724249920530,3.2914,2588.6,2587.6,3.86457]
[1724249920867,3.2914,2588.6,2587.1,0.3874]
[1724249921076,3.2914,2588.6,2587.3,0.3874]
[1724249921285,3.2914,2588.6,2588.0,3.86397]
[1724249921490,3.2914,2588.6,2588.2,3.86356]
[1724249921774,3.2914,2588.6,2587.8,0.3874]
[1724249922026,3.2914,2588.6,2588.1,3.86369]
[1724249922320,3.2914,2588.6,2587.9,7.72809]
[1724249922468,3.2914,2588.6,2587.9,3.86401]
[1724249922811,3.2914,2588.6,2588.0,3.86388]
[1724249922979,3.2914,2588.6,2588.2,3.86364]
[1724249923182,3.86194,2589.4,2588.2,3.86364]
[1724249923183,3.2331,2589.4,2588.3,3.86349]
[1724249923367,3.2331,2589.4,2588.4,0.3874]
[1724249923567,3.86123363,2589.2,2587.9,3.86403]
[1724249923802,7.095,2589.4,2588.4,3.86329]
[1724249923803,3.2331,2589.4,2588.4,3.86329]
[1724249924006,3.2331,2589.4,2588.0,0.07726935]
[1724249924007,7.09501,2589.4,2588.2,3.86358]
[1724249924205,7.09501,2589.4,2588.2,4.25096]
[1724249924206,0.709501,2589.3,2588.2,4.25096]
[1724249924670,7.09501,2589.4,2588.2,0.3874]
[1724249924671,3.2331,2589.4,2588.2,0.3874]
[1724249925070,3.2331,2589.4,2588.4,3.86327]
[1724249925306,3.2331,2589.4,2588.7,3.86292]
[1724249925518,3.2331,2589.4,2588.7,0.386292]
[1724249925737,5.45354465,2591.3,2589.3,3.86204]
[1724249925738,3.2636,2590.0,2589.3,3.86204]
[1724249926177,3.2636,2590.0,2589.2,3.86219]
[1724249926381,3.2636,2590.0,2588.9,4.25002]
[1724249926582,3.2636,2590.0,2589.0,3.8624]
[1724249926812,3.976033,2590.0,2589.3,3.86198]
[1724249927011,3.976033,2590.0,2589.1,3.86229]
[1724249927012,3.2636,2590.0,2589.1,3.86229]
[1724249927321,3.2636,2590.0,2589.3,3.86194]
[1724249927675,3.2636,2590.0,2589.2,3.86215]
[1724249927870,3.2636,2590.0,2588.9,0.3874]
[1724249927871,3.2636,2590.0,2589.4,3.8618]
[1724249928209,3.2636,2590.0,2589.3,3.86194]
[1724249928419,3.2636,2590.0,2589.3,3.86203]
[1724249928625,3.2636,2590.0,2589.5,3.86173]
[1724249928917,3.2636,2590.0,2589.3,0.386203]
[1724249928918,3.2636,2590.0,2589.4,3.86187]
[1724249929209,3.2636,2590.0,2589.4,3.86175]
[1724249929412,12.30469,2591.6,2589.3,0.3874]
[1724249929413,3.3212,2590.7,2589.3,0.0772284]
[1724249929635,3.3212,2590.7,2589.1,3.86232]
[1724249929636,3.3212,2590.7,2590.0,3.86086]
[1724249929933,3.3212,2590.7,2590.3,3.86041]
[1724249930150,3.3212,2590.7,2590.1,3.86081]
[1724249930439,3.3212,2590.7,2590.1,3.86074]
[1724249930624,3.3212,2590.7,2590.3,3.86055]
[1724249930986,3.3212,2590.7,2590.4,3.86039]
[1724249931214,3.2974,2591.5,2590.4,0.772082]
[1724249931435,3.2974,2591.5,2590.6,0.3874]
[1724249931634,3.2974,2591.5,2590.7,3.85995]
[1724249932412,3.2974,2591.5,2590.7,3.85986]
[1724249932622,3.2974,2591.5,2590.8,3.85969]
[1724249932887,3.2974,2591.5,2590.2,3.86066]
[1724249933082,3.2974,2591.5,2590.1,3.86073]
[1724249933083,4.1888,2591.4,2590.1,3.86073]
[1724249933486,3.2974,2591.5,2590.0,0.07720055]
[1724249933726,3.2974,2591.5,2590.7,3.85986]
[1724249933926,3.2974,2591.5,2590.4,0.07718539]
[1724249934130,3.85797,2592.1,2590.9,3.85952]
[1724249934330,3.85803,2592.0,2590.9,3.85952]
[1724249934548,3.2501,2592.2,2590.7,3.85993]
[1724249934549,4.62977,2591.9,2590.7,3.85993]
[1724249934694,3.2501,2591.8,2590.7,3.85993]
[1724249935093,3.2501,2591.8,2590.4,3.0]
[1724249935094,3.2501,2591.8,2590.4,3.86035]
[1724249935334,3.2501,2591.8,2591.0,3.8595]
[1724249935534,3.2501,2591.8,2590.1,0.55]
[1724249935535,3.2501,2591.8,2590.2,0.0771835]
[1724249935738,0.32501,2591.7,2590.9,3.85955]
[1724249935944,0.32501,2591.7,2591.0,3.85951]
[1724249936245,3.85764,2592.3,2590.7,3.3423]
[1724249936246,3.3312,2592.3,2590.7,3.3423]
[1724249936390,3.3312,2592.3,2590.9,0.7]
[1724249936595,3.3312,2592.3,2592.1,3.85774]
[1724249936907,3.66432,2592.3,2591.7,3.85837]
[1724249937098,3.66432,2592.3,2591.6,3.85859]
[1724249937293,3.3312,2592.3,2591.8,3.85829]
[1724249937494,3.3312,2592.3,2591.4,3.85879]
[1724249938048,3.3312,2592.3,2591.2,3.85913]
[1724249938208,3.3312,2592.3,2591.4,3.85891]
[1724249938537,3.3312,2592.3,2591.6,3.85849]
[1724249938736,3.3312,2592.3,2591.7,3.85845]
[1724249939049,3.3312,2592.3,2591.6,3.85849]
[1724249939254,3.66432,2592.3,2591.2,3.85913]
[1724249939598,3.66432,2592.3,2591.2,3.85907]
[1724249939801,7.5219,2592.3,2591.2,3.85907]
[1724249940044,3.66432,2592.3,2591.2,3.85907]
[1724249940260,3.66432,2592.3,2590.8,3.0]
[1724249940261,0.752186,2592.2,2591.5,3.85873]
[1724249940400,3.3312,2592.3,2591.8,3.85825]
[1724249940805,3.3312,2592.3,2590.8,3.7]
[1724249940806,3.85811,2592.0,2590.8,3.85975]
[1724249941018,3.3312,2592.3,2590.5,3.86023]
[1724249941019,3.3309,2591.9,2591.0,3.85937]
[1724249941252,3.3309,2591.9,2590.6,3.86003]
[1724249941253,3.85859,2591.7,2590.6,3.86003]
[1724249941468,4.19148,2591.8,2590.6,3.86001]
[1724249941603,4.19148,2591.8,2590.2,0.36271835]
[1724249941604,3.2269,2591.7,2590.2,0.36271835]
[1724249941804,3.2269,2591.7,2590.6,3.85997]
[1724249942043,3.2269,2591.7,2590.7,3.85982]
[1724249942250,3.2269,2591.7,2590.8,3.85979]
[1724249942455,3.2269,2591.7,2591.1,3.85926]
[1724249942747,3.2269,2591.7,2591.3,3.85905]
[1724249942949,3.2269,2591.7,2591.3,0.771825]
[1724249943161,3.283,2592.7,2591.6,3.85862]
[1724249943338,3.283,2592.7,2590.7,3.0]
[1724249943339,3.3252,2592.4,2591.4,3.8588]
[1724249943884,3.3252,2592.3,2591.6,3.85856]
[1724249944023,3.2457,2593.2,2591.8,3.85831]
[1724249944351,3.8557,2593.6,2591.6,4.244376]
[1724249944352,3.85709,2592.7,2591.6,4.244376]
[1724249944560,3.85709,2592.7,2591.5,3.85866]
[1724249944561,3.2457,2592.6,2591.5,3.85866]
[1724249944800,3.2457,2592.4,2591.0,3.0]
[1724249945089,3.85657,2593.0,2590.8,3.85972]
[1724249945090,3.2457,2592.0,2590.8,3.85972]
[1724249945296,3.2457,2592.0,2591.1,3.85934]
[1724249945595,3.2457,2592.0,2591.1,3.85932]
[1724249945795,3.2457,2592.0,2591.4,3.85882]
[1724249946096,3.2457,2592.0,2591.2,3.85908]
[1724249946238,3.2457,2592.0,2591.6,3.8586]
[1724249946443,3.2457,2592.0,2591.3,3.85896]
[1724249946638,3.85612,2593.3,2591.3,3.85896]
[1724249946639,3.0758,2592.5,2592.2,3.85767]
[1724249946903,3.0758,2593.4,2592.6,3.85704]
[1724249947040,3.0758,2593.4,2592.8,3.85681]
[1724249947244,3.0758,2593.4,2592.6,3.85704]
[1724249947439,3.0758,2593.4,2591.8,0.3874]
[1724249947677,3.0758,2593.4,2591.3,0.771828]
[1724249947678,3.1142,2593.1,2591.5,3.0]
[1724249947885,3.1142,2593.1,2592.7,3.8569]
[1724249948094,3.1142,2593.1,2591.8,0.3874]
[1724249948430,3.1142,2593.1,2592.5,3.85719]
[1724249948599,3.1142,2593.1,2592.5,3.85725]
[1724249948969,3.85439,2594.5,2592.5,3.85725]
[1724249948970,3.2821,2593.8,2592.5,0.385725]
[1724249949085,3.2821,2594.3,2593.2,4.2436]
[1724249949279,3.2821,2594.3,2593.7,3.85549]
[1724249949480,3.2821,2594.3,2593.8,3.85531]
[1724249949708,3.2821,2594.3,2593.6,3.8556]
[1724249949898,3.2821,2594.3,2593.2,3.85621]
[1724249950214,3.2821,2594.3,2593.1,0.3874]
[1724249950382,3.2821,2594.3,2593.5,3.85574]
[1724249950590,3.2821,2594.3,2593.8,3.8552]
[1724249950782,3.2821,2594.3,2593.6,3.85558]
[1724249951223,3.2821,2594.3,2593.7,3.85549]
[1724249951385,3.2821,2594.3,2593.9,3.85515]
[1724249951716,3.2821,2594.3,2593.1,0.3874]
[1724249951717,3.61031,2594.3,2593.1,0.3874]
[1724249952038,3.61031,2594.3,2592.9,4.24408]
[1724249952190,3.61031,2594.3,2593.0,3.85648]
[1724249952388,3.61031,2594.3,2592.0,7.55871476]
[1724249952389,3.1207,2594.2,2592.0,3.9197]
[1724249952699,0.344891,2594.1,2592.8,3.85671]
[1724249953023,3.344891,2594.1,2593.2,3.85612]
[1724249953218,3.344891,2594.1,2593.1,3.85635]
[1724249953424,3.85535,2593.8,2592.7,3.85684]
[1724249953628,3.3163,2593.7,2592.3,3.85746]
[1724249953802,3.3163,2593.7,2592.2,3.85765]
[1724249953803,0.717169,2593.6,2592.2,3.85765]
[1724249954132,0.717169,2593.6,2592.4,3.85729]
[1724249954336,3.3163,2593.7,2592.7,3.85686]
[1724249954539,3.85644,2593.1,2591.9,3.85814]
[1724249954740,3.094,2593.0,2591.9,3.85814]
[1724249955030,3.094,2593.0,2591.9,3.85815]
[1724249955187,3.094,2593.0,2591.8,3.85831]
[1724249955188,0.695044,2592.9,2592.1,3.85775]
[1724249955537,3.094,2593.0,2592.0,3.85801]
[1724249955694,3.094,2593.0,2592.2,3.85758]
[1724249955914,3.094,2593.0,2592.0,3.85801]
[1724249956256,3.094,2593.0,2592.1,3.85779]
[1724249956461,3.094,2593.0,2591.5,3.8587]
[1724249956594,3.3208,2592.5,2591.4,3.85888]
[1724249956799,3.3208,2592.5,2591.3,3.85899]
[1724249957096,3.3208,2592.5,2591.4,3.8588]
[1724249957537,3.3208,2592.5,2591.7,3.85844]
[1724249957743,3.3208,2592.5,2592.3,3.85744]
[1724249958040,0.344891,2594.1,2592.4,3.85732]
[1724249958041,3.3674,2592.9,2592.4,3.85732]
[1724249958199,3.3674,2592.9,2592.0,3.85797]
[1724249958400,3.3674,2592.9,2591.8,3.0]
[1724249958653,3.3674,2592.9,2592.5,3.85727]
[1724249958855,3.3674,2592.9,2592.3,3.85747]
[1724249958999,3.3674,2592.9,2592.2,3.0]
[1724249959351,3.70414,2592.9,2592.1,3.85787]
[1724249959702,3.70414,2592.9,2592.1,3.85775]
[1724249960050,3.70414,2592.9,2592.1,3.85776]
[1724249960051,3.3674,2592.9,2592.1,3.85776]
[1724249960198,3.3674,2592.9,2592.3,3.85744]
[1724249960400,3.3674,2592.9,2592.4,3.85741]
[1724249960603,3.3674,2592.9,2592.3,3.85744]
[1724249961355,3.0,2593.4,2592.8,3.85671]
[1724249961356,3.1754,2593.4,2592.8,3.85671]
[1724249961641,3.1754,2593.4,2592.5,3.85726]
[1724249961844,7.34895,2593.4,2592.4,0.55]
[1724249962052,3.1938,2593.2,2592.2,6.85766]
[1724249962203,3.1938,2593.2,2592.2,10.71529]
[1724249962399,3.1938,2593.2,2592.4,3.85742]
[1724249962902,3.1938,2593.2,2592.3,3.85755]
[1724249963104,0.31938,2593.1,2592.4,3.85737]
[1724249963425,3.1938,2593.2,2592.9,3.85663]
[1724249963652,3.1938,2593.2,2592.5,3.85728]
[1724249963798,3.1938,2593.2,2592.6,3.85705]
[1724249964001,3.1938,2593.2,2592.3,0.55]
[1724249964251,3.1938,2593.2,2592.9,3.85657]
[1724249964406,3.1938,2593.2,2592.8,3.85677]
[1724249964607,3.1938,2593.2,2592.4,3.355]
[1724249964608,3.1938,2593.2,2592.9,3.85653]
[1724249964946,3.1938,2593.2,2592.7,3.85686]
[1724249965333,3.1938,2593.2,2592.4,3.355]
[1724249965334,3.1938,2593.2,2592.9,3.85654]
[1724249965560,3.51318,2593.2,2592.3,3.85748]
[1724249965771,3.85686,2592.8,2591.5,3.85872]
[1724249965973,3.1264,2592.7,2591.5,3.85866]
[1724249966250,3.1264,2592.5,2591.3,3.85894]
[1724249966552,3.1264,2592.5,2590.4,0.42552296]
[1724249966553,6.1264,2592.4,2591.6,3.8586]
[1724249966848,6.1264,2592.4,2591.2,3.85917]
[1724249966849,9.98386,2592.4,2591.2,3.85917]
[1724249967001,3.85822,2591.9,2590.4,0.42552296]
[1724249967216,3.85822,2591.9,2590.4,3.8603]
[1724249967217,3.85859,2591.7,2590.4,3.8603]
[1724249967414,3.2943,2591.4,2590.8,3.8597]
[1724249967648,3.2943,2591.4,2590.1,0.42552296]
[1724249967814,3.2943,2591.4,2590.2,0.46457817]
[1724249968015,3.62373,2591.4,2589.7,3.8614]
[1724249968221,3.1497,2591.0,2590.0,3.86091]
[1724249968815,3.1497,2591.0,2589.5,3.86169]
[1724249968816,3.86006,2590.7,2589.6,3.86156]
[1724249969021,3.86006,2590.7,2589.1,3.86228]
[1724249969022,3.86054,2590.4,2589.3,3.86201]
[1724249969256,3.1497,2590.3,2588.7,3.8629]
[1724249969467,3.1497,2590.3,2589.1,3.86222]
[1724249969615,3.1497,2590.3,2588.3,13.00945]
[1724249969616,3.1497,2590.3,2589.2,3.86207]
[1724249969816,3.1497,2590.3,2588.9,3.86257]
[1724249970075,3.1497,2590.3,2589.3,3.86204]
[1724249970076,3.8507,2590.3,2589.3,3.86204]
[1724249970257,3.8507,2590.3,2589.0,0.386257]
[1724249970455,3.1497,2590.3,2589.2,3.86215]
[1724249970615,3.1497,2590.3,2589.9,3.86109]
[1724249970975,3.1497,2590.3,2590.1,3.86083]
[1724249971181,3.1497,2590.3,2590.1,3.86073]
[1724249971330,3.1497,2590.3,2590.0,3.86099]
[1724249972076,3.1497,2590.3,2590.2,3.8607]
[1724249973083,0.32943,2591.4,2590.5,3.86015]
[1724249973084,3.2187,2591.1,2590.5,3.86015]
[1724249973293,3.2187,2591.1,2590.2,3.93607]
[1724249973294,3.2187,2591.1,2590.6,3.86001]
[1724249973631,3.2187,2591.1,2590.6,3.86]
[1724249973881,3.2187,2591.1,2590.8,3.85969]
[1724249974048,3.2187,2591.1,2590.7,3.85985]
[1724249974245,3.2187,2591.1,2590.6,3.86]
[1724249974587,3.084,2592.2,2591.3,3.85896]
[1724249974763,3.084,2592.2,2590.7,3.55]
[1724249974764,3.084,2592.2,2591.5,3.85876]
[1724249974965,3.084,2592.2,2591.4,3.8589]
[1724249975125,3.084,2592.2,2591.4,3.85878]
[1724249975126,3.3924,2592.2,2591.4,3.85878]
[1724249975330,3.084,2592.2,2591.4,3.85878]
[1724249975633,3.084,2592.2,2591.5,0.07717194]
[1724249975832,3.084,2592.2,2591.1,3.85929]
[1724249975833,3.084,2592.2,2591.8,3.85821]
[1724249976177,3.084,2592.2,2591.2,3.0]
[1724249976477,3.084,2592.2,2591.7,3.85843]
[1724249976647,3.084,2592.2,2591.3,3.85]
[1724249976845,3.084,2592.2,2591.4,3.8589]
[1724249977088,3.084,2592.2,2591.5,3.0]
[1724249977376,3.084,2592.2,2591.7,3.85836]
[1724249977578,3.084,2592.2,2591.9,3.85817]
[1724249977747,3.084,2592.2,2592.0,3.858]
[1724249977933,3.084,2592.2,2591.6,4.40857]
[1724249978133,3.084,2592.2,2591.5,3.0]
[1724249978569,3.084,2592.2,2591.6,3.85852]
[1724249978771,3.084,2592.2,2591.5,3.0]
[1724249979042,3.084,2592.2,2591.0,3.85938]
[1724249979043,3.85796,2592.1,2591.0,3.85938]
[1724249979348,3.2814,2591.8,2591.0,3.85949]
[1724249979551,3.2814,2591.8,2590.8,3.85978]
[1724249979867,3.2814,2591.8,2591.0,3.85944]
[1724249980067,3.90954,2591.8,2590.7,3.85984]
[1724249980377,3.2187,2591.7,2590.9,3.85954]
[1724249980735,3.2187,2591.7,2590.7,3.85988]
[1724249980929,3.2187,2591.7,2590.2,0.38607]
[1724249980930,3.3971,2591.5,2591.1,3.85925]
[1724249981136,3.3971,2591.5,2590.9,3.85962]
[1724249981336,3.3971,2591.5,2590.9,3.85955]
[1724249981531,3.3971,2591.5,2591.3,3.85906]
[1724249981981,3.3971,2591.5,2591.4,3.85891]
[1724249982285,3.3971,2591.5,2591.1,3.85935]
[1724249982438,3.3971,2591.5,2591.1,7.7187]
[1724249982644,3.3971,2591.5,2591.2,3.8592]
[1724249982839,3.3971,2591.5,2591.1,3.85935]
[1724249983169,3.3971,2591.5,2591.2,3.8591]
[1724249983339,3.3971,2591.5,2591.4,3.85891]
[1724249983673,3.0746,2592.3,2591.8,3.85828]
[1724249984181,3.0746,2592.3,2590.6,1.0874]
[1724249984182,3.0746,2592.3,2591.6,3.85849]
[1724249984585,3.0746,2592.3,2591.1,3.0771635]
[1724249984586,3.0746,2592.3,2591.5,3.85866]
[1724249985284,3.0746,2592.3,2591.3,3.85898]
[1724249985285,3.0746,2592.3,2591.8,3.85832]
[1724249985439,3.0746,2592.3,2591.9,3.85814]
[1724249985640,3.0746,2592.3,2592.0,3.858]
[1724249986078,3.0746,2592.3,2592.2,3.85772]
[1724249986477,3.0746,2592.3,2592.2,7.71544]
[1724249986682,3.0746,2592.3,2592.0,3.85794]
[1724249986877,3.0746,2592.3,2592.0,3.85793]
[1724249987244,3.0746,2592.3,2591.4,3.0]
[1724249987448,3.0746,2592.3,2592.1,3.85776]
[1724249987694,3.0746,2592.3,2592.2,3.85772]
[1724249987898,3.1444,2593.2,2592.6,3.85711]
[1724249988210,3.1444,2593.2,2592.6,3.85704]
[1724249988365,3.45884,2593.2,2592.6,3.85704]
[1724249988565,3.45884,2593.2,2592.7,3.85689]
[1724249988748,3.1444,2593.2,2592.7,3.85689]
[1724249989151,3.1444,2593.2,2592.8,3.85674]
[1724249989448,3.1444,2593.2,2592.5,3.85727]
[1724249989653,3.8566,2593.0,2592.0,3.85793]
[1724249989880,3.1813,2593.2,2592.1,3.85783]
[1724249990078,1.59440465,2593.9,2591.6,3.85856]
[1724249990079,3.1693,2593.0,2591.6,3.85856]
[1724249990245,3.1693,2593.0,2592.4,3.85731]
[1724249990449,3.1693,2593.0,2591.4,0.47721447]
[1724249990450,3.48623,2593.0,2592.1,3.85786]
[1724249990752,3.1693,2593.0,2590.7,0.7]
[1724249991106,3.1693,2593.0,2590.2,1.57155785]
[1724249991107,3.8579,2592.1,2591.0,3.85942]
[1724249991287,3.1281,2592.0,2590.9,3.85963]
[1724249991645,3.1281,2592.0,2590.8,3.85971]
[1724249991853,3.0,2592.3,2590.6,3.86]
[1724249991854,3.2277,2591.7,2590.6,3.86]
[1724249992078,7.08618,2591.7,2590.6,3.86]
[1724249992393,3.1755,2591.6,2590.6,3.85996]
[1724249992908,7.0345,2591.4,2590.2,4.24667]
[1724249993049,3.1755,2591.4,2590.4,3.86034]
[1724249993247,3.1755,2591.4,2590.4,4.671043]
[1724249993659,3.1755,2591.4,2590.7,3.85993]
[1724249993860,3.1755,2591.4,2590.8,3.85981]
[1724249994275,3.1755,2591.4,2590.6,7.72004]
[1724249994607,3.1755,2591.4,2590.6,7.71999]
[1724249994759,3.1755,2591.4,2590.6,4.7130593]
[1724249994958,3.85762,2592.3,2591.3,3.85905]
[1724249994959,7.07569,2592.3,2591.3,3.85905]
[1724249995160,3.85676,2592.9,2591.3,3.85905]
[1724249995161,3.3308,2592.9,2591.4,1.18838763]
[1724249995362,3.3308,2592.9,2592.0,3.8579]
[1724249995574,3.3308,2592.9,2591.7,3.0]
[1724249995780,3.3308,2592.9,2592.2,3.85761]
[1724249995991,3.3308,2592.9,2592.4,3.85736]
[1724249996295,3.3308,2592.9,2592.2,3.85761]
[1724249996491,3.3308,2592.9,2592.3,3.85746]
[1724249996712,3.3308,2592.9,2592.0,3.858]
[1724249997009,3.3308,2592.9,2591.8,0.85771473]
[1724249997010,3.85687,2592.8,2591.8,3.85826]
[1724249997312,3.3308,2592.9,2591.9,3.85805]
[1724249997530,3.2483,2592.7,2591.5,3.85875]
[1724249997823,3.2483,2592.7,2591.4,3.85884]
[1724249997824,3.85722,2592.6,2591.6,3.8586]
[1724249997981,4.867738,2592.6,2591.4,3.85884]
[1724249998307,4.867738,2592.6,2591.4,3.85882]
[1724249998308,1.010518,2592.6,2591.4,3.85882]
[1724249998517,3.85744,2592.4,2591.3,3.0]
[1724249998679,3.2199,2592.2,2591.2,3.85909]
[1724249998881,3.2199,2592.2,2591.4,3.8589]
[1724249999078,3.2199,2592.2,2590.6,0.8530693]
[1724249999079,3.2199,2592.2,2591.6,3.85859]
[1724249999418,3.2199,2592.2,2591.8,3.85821]
[1724249999722,3.2199,2592.2,2591.8,3.85825]
[1724250000059,3.2199,2592.2,2591.6,3.85857]
[1724250000259,3.2199,2592.2,2591.4,3.85884]
[1724250000519,3.2199,2592.2,2591.8,3.85822]
[1724250000698,3.2199,2592.2,2591.6,3.85849]
[1724250001030,3.2199,2592.2,2591.1,3.0]
[1724250001031,3.0718,2592.1,2591.1,3.85925]
[1724250001218,3.85782,2592.2,2590.6,4.7131593]
[1724250001219,1.59440465,2592.9,2591.6,3.3116]
[1724250001515,3.0718,2593.3,2592.7,3.85689]
[1724250001809,3.0718,2593.3,2592.7,3.85687]
[1724250002008,3.0718,2593.3,2592.8,3.85682]
[1724250002311,3.0718,2593.3,2592.3,3.85753]
[1724250002312,3.0718,2593.3,2593.1,3.85636]
[1724250003011,3.0718,2593.3,2592.9,3.85662]
[1724250003012,3.0718,2593.3,2593.0,3.85651]
[1724250003212,3.0718,2593.3,2592.9,3.85658]
[1724250003579,3.0718,2593.3,2593.0,3.85644]
[1724250003767,3.0718,2593.3,2592.9,7.71313]
[1724250003965,3.37898,2593.3,2591.9,3.85813]
[1724250004174,3.37898,2593.3,2592.6,3.85711]
[1724250004523,3.37898,2593.3,2592.4,3.85732]
[1724250004818,3.37898,2593.3,2592.8,3.85682]
[1724250004819,3.0718,2593.3,2592.8,3.85682]
[1724250005063,3.0718,2593.3,2592.7,3.85689]
[1724250005410,3.0718,2593.3,2592.8,3.85681]
[1724250005616,3.0718,2593.3,2593.2,3.85623]
[1724250005859,0.54489546,2594.3,2593.3,3.85597]
[1724250005860,3.1178,2594.2,2593.3,3.85597]
[1724250006067,3.1178,2594.1,2592.9,3.85655]
[1724250006362,3.1178,2594.1,2593.1,3.85638]
[1724250006363,6.97272,2594.1,2593.1,3.85638]
[1724250006560,3.1178,2594.1,2593.1,3.85638]
[1724250006768,3.48406955,2594.1,2593.3,3.85608]
[1724250007119,7.33904955,2594.1,2593.1,3.85638]
[1724250007427,7.33904955,2594.1,2593.1,3.85636]
[1724250007428,3.3938,2594.0,2593.1,3.85636]
[1724250007633,3.3938,2594.0,2593.5,3.85565]
[1724250008418,3.3938,2594.0,2592.8,0.3874]
[1724250008614,3.3938,2594.0,2593.5,3.85564]
[1724250008838,3.3938,2594.0,2593.6,0.07710979]
[1724250009029,3.3938,2594.0,2593.6,3.85555]
[1724250009266,3.3938,2594.0,2593.8,3.85534]
[1724250009473,3.3938,2594.0,2593.6,3.85551]
[1724250009765,3.3938,2594.0,2593.6,7.71107]
[1724250010066,3.3938,2594.0,2593.9,3.85519]
[1724250010270,3.85369,2595.0,2593.9,3.85519]
[1724250010422,3.85369,2595.0,2594.0,3.85502]
[1724250011119,3.3524,2595.1,2594.1,3.85481]
[1724250011550,3.68764,2595.1,2593.9,3.85509]
[1724250011748,3.68764,2595.1,2593.4,0.3874]
[1724250011935,3.68764,2595.1,2594.1,3.8548]
[1724250011936,7.54114,2595.1,2594.1,3.8548]
[1724250012765,7.54114,2595.1,2593.9,7.71017]
[1724250012766,6.85366,2595.0,2593.9,7.71017]
[1724250012940,7.607774,2595.0,2593.9,3.85506]
[1724250013282,3.85438,2594.5,2593.2,3.0]
[1724250013570,3.3878,2594.8,2593.1,0.3874]
[1724250013571,3.85477,2594.2,2593.3,3.85599]
[1724250013922,3.0963,2594.1,2593.1,3.85629]
[1724250014375,3.0963,2594.1,2592.7,0.3874]
[1724250014533,3.0963,2594.1,2593.2,3.85615]
[1724250014732,3.0963,2594.1,2593.3,4.241575]
[1724250014939,3.0963,2594.1,2593.5,3.85573]
[1724250015135,6.3104,2594.7,2594.0,3.85494]
[1724250015442,6.3104,2594.7,2593.8,7.7105]
[1724250015443,3.3104,2594.7,2593.8,7.7105]
[1724250015642,3.3104,2594.7,2593.8,3.8552]
[1724250015958,3.3104,2594.7,2593.9,3.85518]
[1724250016377,3.85426,2594.6,2593.3,0.385615]
[1724250016579,4.712199,2594.7,2593.4,1.01450032]
[1724250016580,3.3104,2594.7,2593.4,1.01450032]
[1724250016744,3.3104,2594.7,2594.0,3.85496]
[1724250017099,3.3104,2594.7,2594.1,3.8549]
[1724250017420,3.3104,2594.7,2594.2,3.85467]
[1724250017558,3.3104,2594.7,2594.0,3.85495]
[1724250017758,3.3104,2594.7,2593.9,3.85519]
[1724250018148,3.3104,2594.7,2594.2,3.85472]
[1724250018983,3.3104,2594.7,2594.0,3.85492]
[1724250019200,3.3104,2594.7,2593.4,0.3874]
[1724250019393,3.3104,2594.7,2593.9,3.85508]
[1724250019597,3.3104,2594.7,2594.1,3.85489]
[1724250019808,3.3104,2594.7,2594.3,3.85446]
[1724250020004,3.3104,2594.7,2594.5,3.85429]
[1724250020147,3.3104,2594.7,2594.4,3.85433]
[1724250020363,3.3104,2594.7,2594.3,3.85446]
[1724250021244,3.3104,2594.7,2593.7,3.85542]
[1724250021245,3.3104,2594.7,2593.7,3.85539]
[1724250021495,3.3104,2594.7,2593.5,3.85575]
[1724250021496,4.1852,2594.6,2593.5,3.85575]
[1724250021691,3.3104,2594.7,2593.8,3.85527]
[1724250021999,3.3104,2594.7,2593.3,0.385615]
[1724250022161,3.3104,2594.7,2593.5,0.7]
[1724250022343,3.3104,2594.7,2594.3,3.85453]
[1724250022792,3.3104,2594.7,2594.1,3.85476]
[1724250022996,3.3104,2594.7,2594.2,3.85466]
[1724250023197,3.3104,2594.7,2594.0,3.85499]